{"text_format":"2","workbook":"xlsx","n_sheets":2,"sheets":["Istruzioni","Calcolo"],"not_rendered":{"charts":0,"images":5,"macros":0,"external_links":16,"defined_names":439,"comments":0,"pivot_tables":0},"unopened":[],"bounds":{"document_bytes":16777216,"sheet_cells":100000,"run_cost":"one","rows_first":2000,"rows_last":500,"rows_between":2000,"halvings":0,"cell_chars":16384,"cell_head_chars":4096},"cells_cut":0,"cells_raw":0,"read":"whole","date_system":"1900"}

{"sheet":"Istruzioni","index":0,"n_rows":19,"n_cols":4,"rows_kept":19,"cut":false,"hidden":false,"merged":[[9,2,9,7],[1,1,1,7],[2,2,2,7],[3,2,3,7],[4,2,4,7],[5,2,5,7],[6,1,6,7],[7,2,7,7],[8,2,8,7],[18,1,18,7],[10,1,10,7],[12,3,12,7],[13,3,13,7],[14,3,14,7],[15,3,15,7],[17,1,17,7]]}
[null,"ISTRUZIONI"]
[null,"DIMENSIONE D’IMPRESA\nNell’ambito della finanza agevolata, il calcolo della dimensione d’impresa è importante poiché alcune iniziative si rivolgono solo a imprese di specifiche dimensioni.\nIn generale nel linguaggio della Commissione Europea esiste una macro distinzione tra Piccole e Medie Imprese (PMI) e Grandi Imprese. Considerando la particolare attenzione di tutti gli interventi di finanza agevolata  verso  le  imprese  di  più  ridotte  dimensioni,  le  previsioni  normative  sul  calcolo  della dimensione d’impresa riguardano le PMI e definiscono quindi per differenza le Grandi Imprese.\nLa definizione di PMI è contenuta nell’allegato I del Regolamento (UE) n. 651/2014 del 17 giugno 2014 che riprende la Raccomandazione 2003/361/CE relativa alla definizione delle microimprese, piccole e medie imprese che utilizza, quali parametri per il calcolo della dimensione, il numero di occupati (cd. effettivi) e il fatturato annuo o totale di bilancio (valore dei principali attivi di un’impresa). 1\nNel  dettaglio,  una  PMI 2   è  un’impresa  che,  dall’ultimo  bilancio  annuale  approvato,  possiede  i  seguiti requisiti:\n- occupa meno di 250 persone;\n- ha un fatturato annuo che non supera 50 milioni di euro e/o un totale di bilancio annuo che non supera 43 milioni di euro.\nNella tabella di seguito riportata, si sintetizzano le varie caratteristiche di ogni tipologia d’impresa."]
[null,"Micro Impresa","un’impresa che occupa meno di 10 persone e che realizza un fatturato annuo e/o un totale di bilancio annuo non superiori a 2 milioni di euro"]
[null,"Piccola Impresa","un'impresa che occupa meno di 50 persone e che realizza un fatturato annuo e/o un totale di bilancio annuo non superiori a 10 milioni di euro"]
[null,"Media Impresa","un’impresa che occupa tra 50 e 250 persone (escluso) persone e che realizza un fatturato annuo compreso tra 10 e 50 milioni d euro e/o un totale di bilancio annuo compreso tra 10 e 43 milioni di euro. 3"]
[null,"Grande Impresa","un’impresa  che  non  soddisfa  i  requisiti  della  PMI.  In  questa  categoria  un sottogruppo  di  imprese  è  rappresentato  dalle  MidCap,  temine  utilizzato  dal sistema  finanziario  nazionale  ed  estero  per  indicare  le  imprese  con  meno  di 3mila dipendenti."]
[null,"È importante tenere presente che le soglie previste possono non fare solo riferimento alla sola impresa che presenta domanda di agevolazione. In particolare bisogna definire correttamente il perimetro del calcolo stabilendo se l’impresa che presenta domanda è autonoma, associata o collegata. Si riepilogano di seguito le fattispecie sulla base della normativa comunitaria vigente:"]
[null,"Impresa autonoma","- detiene meno del 25 % (capitale o diritti di voto) in un’altra impresa\ne/o\n- è partecipata da un’altra impresa per una quota inferiore al 25% (capitale o diritti di voto). 4\nPer il calcolo degli effettivi e dei dati di bilancio si utilizzano quelli della sola impresa che presenta domanda di agevolazione"]
[null,"Impresa associata","- detiene almeno il 25 % ma non più del 50 % (capitale o diritti di voto) in un’altra impresa\ne/o\n-  è  partecipata  da  un’altra  impresa  per  una  quota  compresa  tra  il  25%e  il  50% (capitale o diritti di voto).\nPer   il   calcolo   degli   effettivi   e   dei   dati   di   bilancio   si   sommano   a   quelli dell’impresa  che  presenta  domanda  di  agevolazione  una  proporzione  del calcolo degli effettivi e degli elementi finanziari dell’altra impresa/e"]
[null,"Impresa collegata","- detiene più del 50 % (capitale o diritti di voto) di un’altra impresa\ne/o\n- è partecipata da un’altra impresa per una quota superiore al 50%(capitale o diritti di voto).\n\nIl collegamento tra due imprese può determinarsi anche attraverso una persona fisica o un gruppo di persone fisiche che agiscono di concerto, purché si verifichino contemporaneamente le seguenti condizioni:\n1. La persona o il gruppo di persone fisiche che agiscono di concerto devono possedere in entrambe le imprese, congiuntamente nel caso di più persone, partecipazioni in misura tale da detenerne il controllo;\n2. Le attività svolte dalle imprese devono essere ricomprese nella stessa Divisione della Classificazione delle attività economiche ISTAT (ossia devono agire sullo stesso mercato o su un mercato direttamente a valle o a monte dell’impresa richiedente), ovvero un’impresa ha fatturato all’altra almeno il 25% del totale fatturato annuo riferito all’ultimo esercizio contabile chiuso ed approvato prima della data di sottoscrizione della domanda di agevolazione.\n\nPer   il   calcolo   degli   effettivi   e   dei   dati   di   bilancio   si   sommano   a   quelli dell’impresa  che  presenta  domanda  di  agevolazione  tutti  gli  effettivi  e  gli elementi finanziari dell’altra impresa/e"]
[null,"Come accennato, per stabilire il rispetto della soglia delle persone occupate, si applica il criterio degli “effettivi”. In particolare, occorre considerare nel calcolo:\na.    i dipendenti;\nb.    le  persone  che  lavorano  per  l’impresa,  che  ne  sono  dipendenti  e,  secondo  la  legislazione nazionale, che sono considerati come dipendenti dell’impresa;\nc.    i proprietari-gestori;\nd.    i soci che svolgono un’attività regolare nell’impresa e beneficiano di vantaggi finanziari da essa forniti;\nGli  effettivi  sono  espressi  in  unità  lavorative-anno  (ULA).  In  particolare,  chiunque  abbia  lavorato nell’impresa, o per suo conto, durante l’intero anno di riferimento conta come una unità. I dipendenti che hanno lavorato a tempo parziale, i lavoratori stagionali e coloro che non hanno lavorato tutto l’anno devono essere contabilizzati in frazioni di unità (Nota 5)."]
[null,"Esempi di calcolo della dimensione d’impresa"]
[null,"Esempio 1",null,"Situazione:\nL’impresa A (che presenta domanda di agevolazione) possiede il 33% dell’impresa C e il 49% dell’impresa D, mentre l’impresa B detiene il 25% dell’impresa A.\nPer calcolare gli effettivi e i dati finanziari si sommano le percentuali dei dati di B, C e D ai dati dell’impresa A.\n\nCalcolo per la determinazione della dimensione d’impresa:\nTotale dell’impresa A: 100% di A + 25%di B + 33% di C + 49% di D\n\n\n"]
[null,"Esempio 2",null,"Situazione:\nL’impresa A (che presenta domanda di agevolazione) possiede il 51% dell’impresa C e il 100% dell’impresa D, mentre l’impresa B detiene il 60% dell’impresa A.\nDal momento che le partecipazioni sono in ciascun caso superiori al 50%, nel calcolare gli effettivi e le soglie finanziarie si considera il 100% dei dati di ognuna delle quattro imprese interessate.\n\nCalcolo per la determinazione della dimensione d’impresa:\nTotale dell’impresa A: 100% di A+ 100% di B + 100% di C + 100% di D\n"]
[null,"Esempio 3",null,"Situazione:\nL’impresa A (che presenta domanda di agevolazione) è collegata all’impresa B mediante la partecipazione del 60% che B detiene nell’impresa A.\nL’impresa B ha anche due imprese associate, le imprese C e D, che possiedono rispettivamente il 32% e il 25% di B.\n\nCalcolo per la determinazione della dimensione d’impresa:\nPer calcolare i dati dell’impresa A, bisogna aggiungere il 100% dei dati di B + il 32% dei dati di C + il 25% dei dati di D.\nTotale dell’impresa A = 100% di A + 100% di B + 32% di C + 25 % di D\n"]
[null,"Esempio 4",null,"Situazione:\nLe imprese B e C sono entrambe associate all’impresa A (che presenta domanda di agevolazione) poiché ne detengono una quota del 38%. Ma B è anche collegata a D mediante una partecipazione del 60% e C ed E sono associate (40%).\n\nCalcolo per la determinazione della dimensione d’impresa:\nPer calcolare i dati dell’impresa A, bisogna ai dati della stessa impresa A, da un lato il 38% dei dati aggregati di B e D (perché B e D sono collegate) e, dall’altro, solo il 38% dei dati dell’impresa C. Non occorre prendere in considerazione i dati di E, poiché nel calcolo non devono mai essere considerati i dati di una impresa associata in una impresa associata.\nTotale dell’impresa A = 100% di A + 38% di (B + D) + 38% di C\n"]
[]
[null,"Nota 1: Per  maggiori  dettagli,  cfr.  articolo  12,  paragrafo  3,  della  direttiva  78/660/CEE  del  Consiglio,  del  25  luglio  1978,  basato sull’articolo 54, paragrafo 3, lettera g), del trattato e relativo ai conti annuali di taluni tipi di società (GU L 222 del 14.8.1978 pag. 11).\n\nNota 2: Un’impresa non è una PMI se il 25 % o più del suo capitale o dei suoi diritti di voto è controllato direttamente o indirettamente da uno o più organismi collettivi pubblici o enti pubblici, a titolo individuale o congiuntamente. La proprietà pubblica può offrire alcuni vantaggi, in particolare di carattere finanziario rispetto a quelle imprese finanziate da capitali privati. Inoltre, spesso non è possibile calcolare gli effettivi e i dati finanziari degli organismi pubblici.\n\nNota 3:  Tale definizione può essere ricavata per differenza tra quella di PMI e quella di piccola impresa presenti nel Regolamento comunitario."]
[null,"Nota 4:  Si resta impresa autonoma anche se si hanno più investitori che detengono quote inferiori al 25%; l’unica condizione è che questi non siano tra loro collegati. La soglia del 25% viene innalzata al 50% se la partecipazione nell’impresa è detenuta da: società  pubbliche  di  partecipazione,  fondi  di  venture  capital  e  business  angel  (per  questi  ultimi  a  condizione  che  il  loro coinvolgimento  finanziario  sia  inferiore  a  1.250.000  euro),  università  o  centri  di  ricerca  senza  scopo  di  lucro;  investitori istituzionali compresi i fondi di sviluppo regionale; autorità locali autonome aventi un bilancio annuale inferiore a 10 milioni di euro e meno di 5.000 abitanti.\n\nNota 5:  Gli apprendisti con contratto di apprendistato e gli studenti con contratto di formazione non sono considerati come facenti parte degli effettivi. Non è inoltre contabilizzata la durata dei congedi di maternità o parentali.\n\nDi seguito alcune esemplificazioni:\n"]

{"sheet":"Calcolo","index":1,"n_rows":85,"n_cols":17,"rows_kept":85,"cut":false,"hidden":false,"merged":[[84,1,84,9],[63,1,63,15],[67,1,67,7],[68,1,68,7],[61,2,61,3],[61,4,61,5],[61,6,61,7],[61,10,61,11],[61,12,61,13],[61,14,61,15],[60,2,60,3],[60,4,60,5],[60,6,60,7],[60,10,60,11],[60,12,60,13],[60,14,60,15],[59,2,59,3],[59,4,59,5],[59,6,59,7],[59,10,59,11],[59,12,59,13],[59,14,59,15],[58,2,58,3],[58,4,58,5],[58,6,58,7],[58,10,58,11],[58,12,58,13],[58,14,58,15],[56,2,56,7],[56,10,56,15],[57,2,57,3],[57,4,57,5],[57,6,57,7],[57,10,57,11],[57,12,57,13],[57,14,57,15],[52,2,52,3],[52,4,52,5],[52,6,52,7],[52,10,52,11],[52,12,52,13],[52,14,52,15],[51,2,51,3],[51,4,51,5],[51,6,51,7],[51,10,51,11],[51,12,51,13],[51,14,51,15],[50,2,50,3],[50,4,50,5],[50,6,50,7],[50,10,50,11],[50,12,50,13],[50,14,50,15],[49,2,49,3],[49,4,49,5],[49,6,49,7],[49,10,49,11],[49,12,49,13],[49,14,49,15],[47,2,47,7],[47,10,47,15],[48,2,48,3],[48,4,48,5],[48,6,48,7],[48,10,48,11],[48,12,48,13],[48,14,48,15],[43,2,43,3],[43,4,43,5],[43,6,43,7],[43,10,43,11],[43,12,43,13],[43,14,43,15],[42,2,42,3],[42,4,42,5],[42,6,42,7],[42,10,42,11],[42,12,42,13],[42,14,42,15],[41,2,41,3],[41,4,41,5],[41,6,41,7],[41,10,41,11],[41,12,41,13],[41,14,41,15],[40,2,40,3],[40,4,40,5],[40,6,40,7],[40,10,40,11],[40,12,40,13],[40,14,40,15],[38,2,38,7],[38,10,38,15],[39,2,39,3],[39,4,39,5],[39,6,39,7],[39,10,39,11],[39,12,39,13],[39,14,39,15],[34,2,34,3],[34,4,34,5],[34,6,34,7],[34,10,34,11],[34,12,34,13],[34,14,34,15],[33,2,33,3],[33,4,33,5],[33,6,33,7],[33,10,33,11],[33,12,33,13],[33,14,33,15],[32,2,32,3],[32,4,32,5],[32,6,32,7],[32,10,32,11],[32,12,32,13],[32,14,32,15],[31,2,31,3],[31,4,31,5],[31,6,31,7],[31,10,31,11],[31,12,31,13],[31,14,31,15],[29,2,29,7],[29,10,29,15],[30,2,30,3],[30,4,30,5],[30,6,30,7],[30,10,30,11],[30,12,30,13],[30,14,30,15],[25,2,25,3],[25,4,25,5],[25,6,25,7],[25,10,25,11],[25,12,25,13],[25,14,25,15],[24,2,24,3],[24,4,24,5],[24,6,24,7],[24,10,24,11],[24,12,24,13],[24,14,24,15],[23,2,23,3],[23,4,23,5],[23,6,23,7],[23,10,23,11],[23,12,23,13],[23,14,23,15],[10,9,10,10],[10,11,10,15],[7,2,7,3],[7,4,7,5],[7,6,7,7],[8,2,8,3],[8,4,8,5],[8,6,8,7],[22,2,22,3],[22,4,22,5],[22,6,22,7],[22,10,22,11],[22,12,22,13],[22,14,22,15],[12,1,12,15],[13,8,14,8],[20,2,20,7],[20,10,20,15],[21,2,21,3],[21,4,21,5],[21,6,21,7],[21,10,21,11],[21,12,21,13],[21,14,21,15],[4,2,4,7],[5,2,5,7],[6,2,6,3],[6,4,6,5],[6,6,6,7],[9,2,9,3],[9,4,9,5],[9,6,9,7],[10,2,10,7]]}
[]
[{"$nulls":4},"CALCOLO DIMENSIONE D'IMPRESA"]
[null,"Sezione 1: Dati sull'impresa richiedente",{"$nulls":8},"Sezione 3: Calcolo dimensione d'impresa"]
[]
[null,"1. Ragione sociale impresa richiedente",{"$nulls":7},"Anno di riferimento",null,{"$f":"C7","v":0},null,{"$f":"E7","v":""},null,{"$f":"G7","v":""}]
[null,"2. Codice fiscale",{"$nulls":7},"Fatturato ultimo bilancio approvato (€)",null,{"$f":"IF($C$11=$B$67,0,\nIF($C$11=$B$68,C8,\n+C8+IF(C23<25%,0,IF(AND(C23>=25%,C23<50%),C24*C23,IF(C23>=50%,C24,0)))+IF(C32<25%,0,IF(AND(C32>=25%,C32<50%),C33*C32,IF(C32>=50%,C33,0)))+(IF(C41<25%,0,IF(AND(C41>=25%,C41<50%),C42*C41,IF(C41>=50%,C42,0))))+(IF(C50<25%,0,IF(AND(C50>=25%,C50<50%),C51*C50,IF(C50>=50%,C51,0))))+(IF(C59<25%,0,IF(AND(C59>=25%,C59<50%),C60*C59,IF(C59>=50%,C60,0))))+(IF(K23<25%,0,IF(AND(K23>=25%,K23<50%),K24*K23,IF(K23>=50%,K24,0))))+(IF(K32<25%,0,IF(AND(K32>=25%,K32<50%),K33*K32,IF(K32>=50%,K33,0))))+(IF(K41<25%,0,IF(AND(K41>=25%,K41<50%),K42*K41,IF(K41>=50%,K42,0))))+(IF(K50<25%,0,IF(AND(K50>=25%,K50<50%),K51*K50,IF(K50>=50%,K51,0))))+(IF(K59<25%,0,IF(AND(K59>=25%,K59<50%),K60*K59,IF(K59>=50%,K60,0))))))","v":0},null,{"$f":"IF($C$11=$B$67,0,\nIF($C$11=$B$68,E8,\n+E8+(IF(E23<25%,0,IF(AND(E23>=25%,E23<50%),E24*E23,IF(E23>=50%,E24,0))))+(IF(E32<25%,0,IF(AND(E32>=25%,E32<50%),E33*E32,IF(E32>=50%,E33,0))))+(IF(E41<25%,0,IF(AND(E41>=25%,E41<50%),E42*E41,IF(E41>=50%,E42,0))))+(IF(E50<25%,0,IF(AND(E50>=25%,E50<50%),E51*E50,IF(E50>=50%,E51,0))))+(IF(E59<25%,0,IF(AND(E59>=25%,E59<50%),E60*E59,IF(E59>=50%,E60,0))))+(IF(M23<25%,0,IF(AND(M23>=25%,M23<50%),M24*M23,IF(M23>=50%,M24,0))))+(IF(M32<25%,0,IF(AND(M32>=25%,M32<50%),M33*M32,IF(M32>=50%,M33,0))))+(IF(M41<25%,0,IF(AND(M41>=25%,M41<50%),M42*M41,IF(M41>=50%,M42,0))))+(IF(M50<25%,0,IF(AND(M50>=25%,M50<50%),M51*M50,IF(M50>=50%,M51,0))))+(IF(M59<25%,0,IF(AND(M59>=25%,M59<50%),M60*M59,IF(M59>=50%,M60,0))))))","v":0},null,{"$f":"IF($C$11=$B$67,0,\nIF($C$11=$B$68,G8,\n+G8+(IF(G23<25%,0,IF(AND(G23>=25%,G23<50%),G24*G23,IF(G23>=50%,G24,0))))+(IF(G32<25%,0,IF(AND(G32>=25%,G32<50%),G33*G32,IF(G32>=50%,G33,0))))+(IF(G41<25%,0,IF(AND(G41>=25%,G41<50%),G42*G41,IF(G41>=50%,G42,0))))+(IF(G50<25%,0,IF(AND(G50>=25%,G50<50%),G51*G50,IF(G50>=50%,G51,0))))+(IF(G59<25%,0,IF(AND(G59>=25%,G59<50%),G60*G59,IF(G59>=50%,G60,0))))+(IF(O23<25%,0,IF(AND(O23>=25%,O23<50%),O24*O23,IF(O23>=50%,O24,0))))+(IF(O32<25%,0,IF(AND(O32>=25%,O32<50%),O33*O32,IF(O32>=50%,O33,0))))+(IF(O41<25%,0,IF(AND(O41>=25%,O41<50%),O42*O41,IF(O41>=50%,O42,0))))+(IF(O50<25%,0,IF(AND(O50>=25%,O50<50%),O51*O50,IF(O50>=50%,O51,0))))+(IF(O59<25%,0,IF(AND(O59>=25%,O59<50%),O60*O59,IF(O59>=50%,O60,0))))))","v":0}]
[null,"3. Anno di riferimento ultimo bilancio approvato",null,null,{"$f":"IF(C7=\"\",\"\",+C7-1)","v":""},null,{"$f":"IF(C7=\"\",\"\",+C7-2)","v":""},null,null,"Numero di occupati ",null,{"$f":"IF($C$11=$B$67,0,\nIF($C$11=$B$68,C9,\n+C9+(IF(C23<25%,0,IF(AND(C23>=25%,C23<50%),C25*C23,IF(C23>=50%,C25,0))))+(IF(C32<25%,0,IF(AND(C32>=25%,C32<50%),C34*C32,IF(C32>=50%,C34,0))))+(IF(C41<25%,0,IF(AND(C41>=25%,C41<50%),C43*C41,IF(C41>=50%,C43,0))))+(IF(C50<25%,0,IF(AND(C50>=25%,C50<50%),C52*C50,IF(C50>=50%,C52,0))))+(IF(C59<25%,0,IF(AND(C59>=25%,C59<50%),C61*C59,IF(C59>=50%,C61,0))))+(IF(K23<25%,0,IF(AND(K23>=25%,K23<50%),K25*K23,IF(K23>=50%,K25,0))))+(IF(K32<25%,0,IF(AND(K32>=25%,K32<50%),K34*K32,IF(K32>=50%,K34,0))))+(IF(K41<25%,0,IF(AND(K41>=25%,K41<50%),K43*K41,IF(K41>=50%,K43,0))))+(IF(K50<25%,0,IF(AND(K50>=25%,K50<50%),K52*K50,IF(K50>=50%,K52,0))))+(IF(K59<25%,0,IF(AND(K59>=25%,K59<50%),K61*K59,IF(K59>=50%,K61,0))))))","v":0},null,{"$f":"IF($C$11=$B$67,0,\nIF($C$11=$B$68,E9,\n+E9+(IF(E23<25%,0,IF(AND(E23>=25%,E23<50%),E25*E23,IF(E23>=50%,E25,0))))+(IF(E32<25%,0,IF(AND(E32>=25%,E32<50%),E34*E32,IF(E32>=50%,E34,0))))+(IF(E41<25%,0,IF(AND(E41>=25%,E41<50%),E43*E41,IF(E41>=50%,E43,0))))+(IF(E50<25%,0,IF(AND(E50>=25%,E50<50%),E52*E50,IF(E50>=50%,E52,0))))+(IF(E59<25%,0,IF(AND(E59>=25%,E59<50%),E61*E59,IF(E59>=50%,E61,0))))+(IF(M23<25%,0,IF(AND(M23>=25%,M23<50%),M25*M23,IF(M23>=50%,M25,0))))+(IF(M32<25%,0,IF(AND(M32>=25%,M32<50%),M34*M32,IF(M32>=50%,M34,0))))+(IF(M41<25%,0,IF(AND(M41>=25%,M41<50%),M43*M41,IF(M41>=50%,M43,0))))+(IF(M50<25%,0,IF(AND(M50>=25%,M50<50%),M52*M50,IF(M50>=50%,M52,0))))+(IF(M59<25%,0,IF(AND(M59>=25%,M59<50%),M61*M59,IF(M59>=50%,M61,0))))))","v":0},null,{"$f":"IF($C$11=$B$67,0,\nIF($C$11=$B$68,G9,\n+G9+(IF(G23<25%,0,IF(AND(G23>=25%,G23<50%),G25*G23,IF(G23>=50%,G25,0))))+(IF(G32<25%,0,IF(AND(G32>=25%,G32<50%),G34*G32,IF(G32>=50%,G34,0))))+(IF(G41<25%,0,IF(AND(G41>=25%,G41<50%),G43*G41,IF(G41>=50%,G43,0))))+(IF(G50<25%,0,IF(AND(G50>=25%,G50<50%),G52*G50,IF(G50>=50%,G52,0))))+(IF(G59<25%,0,IF(AND(G59>=25%,G59<50%),G61*G59,IF(G59>=50%,G61,0))))+(IF(O23<25%,0,IF(AND(O23>=25%,O23<50%),O25*O23,IF(O23>=50%,O25,0))))+(IF(O32<25%,0,IF(AND(O32>=25%,O32<50%),O34*O32,IF(O32>=50%,O34,0))))+(IF(O41<25%,0,IF(AND(O41>=25%,O41<50%),O43*O41,IF(O41>=50%,O43,0))))+(IF(O50<25%,0,IF(AND(O50>=25%,O50<50%),O52*O50,IF(O50>=50%,O52,0))))+(IF(O59<25%,0,IF(AND(O59>=25%,O59<50%),O61*O59,IF(O59>=50%,O61,0))))))","v":0}]
[null,"4. Fatturato ultimo bilancio approvato (€)",{"$nulls":7},"Totale attivo ultimo bilancio approvato (€)",null,{"$f":"IF($C$11=$B$67,0,\nIF($C$11=$B$68,C10,\n+C10+(IF(C23<25%,0,IF(AND(C23>=25%,C23<50%),C26*C23,IF(C23>=50%,C26,0))))+(IF(C32<25%,0,IF(AND(C32>=25%,C32<50%),C35*C32,IF(C32>=50%,C35,0))))+(IF(C41<25%,0,IF(AND(C41>=25%,C41<50%),C44*C41,IF(C41>=50%,C44,0))))+(IF(C50<25%,0,IF(AND(C50>=25%,C50<50%),C53*C50,IF(C50>=50%,C53,0))))+(IF(C59<25%,0,IF(AND(C59>=25%,C59<50%),C62*C59,IF(C59>=50%,C62,0))))+(IF(K23<25%,0,IF(AND(K23>=25%,K23<50%),K26*K23,IF(K23>=50%,K26,0))))+(IF(K32<25%,0,IF(AND(K32>=25%,K32<50%),K35*K32,IF(K32>=50%,K35,0))))+(IF(K41<25%,0,IF(AND(K41>=25%,K41<50%),K44*K41,IF(K41>=50%,K44,0))))+(IF(K50<25%,0,IF(AND(K50>=25%,K50<50%),K53*K50,IF(K50>=50%,K53,0))))+(IF(K59<25%,0,IF(AND(K59>=25%,K59<50%),K62*K59,IF(K59>=50%,K62,0))))))","v":0},null,{"$f":"IF($C$11=$B$67,0,\nIF($C$11=$B$68,E10,\n+E10+(IF(E23<25%,0,IF(AND(E23>=25%,E23<50%),E26*E23,IF(E23>=50%,E26,0))))+(IF(E32<25%,0,IF(AND(E32>=25%,E32<50%),E35*E32,IF(E32>=50%,E35,0))))+(IF(E41<25%,0,IF(AND(E41>=25%,E41<50%),E44*E41,IF(E41>=50%,E44,0))))+(IF(E50<25%,0,IF(AND(E50>=25%,E50<50%),E53*E50,IF(E50>=50%,E53,0))))+(IF(E59<25%,0,IF(AND(E59>=25%,E59<50%),E62*E59,IF(E59>=50%,E62,0))))+(IF(M23<25%,0,IF(AND(M23>=25%,M23<50%),M26*M23,IF(M23>=50%,M26,0))))+(IF(M32<25%,0,IF(AND(M32>=25%,M32<50%),M35*M32,IF(M32>=50%,M35,0))))+(IF(M41<25%,0,IF(AND(M41>=25%,M41<50%),M44*M41,IF(M41>=50%,M44,0))))+(IF(M50<25%,0,IF(AND(M50>=25%,M50<50%),M53*M50,IF(M50>=50%,M53,0))))+(IF(M59<25%,0,IF(AND(M59>=25%,M59<50%),M62*M59,IF(M59>=50%,M62,0))))))","v":0},null,{"$f":"IF($C$11=$B$67,0,\nIF($C$11=$B$68,G10,\n+G10+(IF(G23<25%,0,IF(AND(G23>=25%,G23<50%),G26*G23,IF(G23>=50%,G26,0))))+(IF(G32<25%,0,IF(AND(G32>=25%,G32<50%),G35*G32,IF(G32>=50%,G35,0))))+(IF(G41<25%,0,IF(AND(G41>=25%,G41<50%),G44*G41,IF(G41>=50%,G44,0))))+(IF(G50<25%,0,IF(AND(G50>=25%,G50<50%),G53*G50,IF(G50>=50%,G53,0))))+(IF(G59<25%,0,IF(AND(G59>=25%,G59<50%),G62*G59,IF(G59>=50%,G62,0))))+(IF(O23<25%,0,IF(AND(O23>=25%,O23<50%),O26*O23,IF(O23>=50%,O26,0))))+(IF(O32<25%,0,IF(AND(O32>=25%,O32<50%),O35*O32,IF(O32>=50%,O35,0))))+(IF(O41<25%,0,IF(AND(O41>=25%,O41<50%),O44*O41,IF(O41>=50%,O44,0))))+(IF(O50<25%,0,IF(AND(O50>=25%,O50<50%),O53*O50,IF(O50>=50%,O53,0))))+(IF(O59<25%,0,IF(AND(O59>=25%,O59<50%),O62*O59,IF(O59>=50%,O62,0))))))","v":0}]
[null,"5. Numero di occupati (1)",{"$nulls":7},"PMI/GRANDE",null,{"$f":"IF(OR(C9=\"\",C8=\"\"),\"\",IF(L7>=$B$77,\"GRANDE\",IF(AND(L7<$B$75,OR(L6<=$B$74,L8<=$B$74)),\"PMI\",IF(AND(L7<$B$76,OR(L6<=$B$73,L8<=$B$73)),\"PMI\",IF(AND(L7<$B$77,OR(L6<=$B$72,L8<=$B$78)),\"PMI\",\"GRANDE\")))))","v":""},null,{"$f":"IF(OR(E9=\"\",E8=\"\"),\"\",IF(N7>=$B$77,\"GRANDE\",IF(AND(N7<$B$75,OR(N6<=$B$74,N8<=$B$74)),\"PMI\",IF(AND(N7<$B$76,OR(N6<=$B$73,N8<=$B$73)),\"PMI\",IF(AND(N7<$B$77,OR(N6<=$B$72,N8<=$B$78)),\"PMI\",\"GRANDE\")))))","v":""},null,{"$f":"IF(OR(G9=\"\",G8=\"\"),\"\",IF(P7>=$B$77,\"GRANDE\",IF(AND(P7<$B$75,OR(P6<=$B$74,P8<=$B$74)),\"PMI\",IF(AND(P7<$B$76,OR(P6<=$B$73,P8<=$B$73)),\"PMI\",IF(AND(P7<$B$77,OR(P6<=$B$72,P8<=$B$78)),\"PMI\",\"GRANDE\")))))","v":""},{"$f":"IF(L9=\"\",\"-\",\nIF(N9=\"\",$B$81,\nIF(L9=N9,L9,\nIF(N9=P9,N9,\nIF(P9=\"\",$B$82,P9)))))","v":"-"}]
[null,"6. Totale attivo ultimo bilancio approvato (€)",{"$nulls":7},"Dimensione impresa per ciascun anno",null,{"$f":"IF(OR(C9=\"\",C8=\"\"),\"\",IF(L7>=$B$77,\"GRANDE\",IF(AND(L7<$B$75,OR(L6<=$B$74,L8<=$B$74)),\"MICRO\",IF(AND(L7<$B$76,OR(L6<=$B$73,L8<=$B$73)),\"PICCOLA\",IF(AND(L7<$B$77,OR(L6<=$B$72,L8<=$B$78)),\"MEDIA\",\"GRANDE\")))))","v":""},null,{"$f":"IF(OR(E9=\"\",E8=\"\"),\"\",IF(N7>=$B$77,\"GRANDE\",IF(AND(N7<$B$75,OR(N6<=$B$74,N8<=$B$74)),\"MICRO\",IF(AND(N7<$B$76,OR(N6<=$B$73,N8<=$B$73)),\"PICCOLA\",IF(AND(N7<$B$77,OR(N6<=$B$72,N8<=$B$78)),\"MEDIA\",\"GRANDE\")))))","v":""},null,{"$f":"IF(OR(G9=\"\",G8=\"\"),\"\",IF(P7>=$B$77,\"GRANDE\",IF(AND(P7<$B$75,OR(P6<=$B$74,P8<=$B$74)),\"MICRO\",IF(AND(P7<$B$76,OR(P6<=$B$73,P8<=$B$73)),\"PICCOLA\",IF(AND(P7<$B$77,OR(P6<=$B$72,P8<=$B$78)),\"MEDIA\",\"GRANDE\")))))","v":""}]
[null,"7. Selezionare la situazione che rappresenta l'impresa richiedente","SELEZIONA",{"$nulls":6},"DIMENSIONE D'IMPRESA CALCOLATA",null,{"$f":"IF(Q9=\"-\",\"-\",\nIF(Q9=$B$81,$B$81,\nIF(Q9=$B$82,$B$82,IF(Q9=\"GRANDE\",\"GRANDE\",IF(L9=\"PMI\",L10,IF(N9=\"PMI\",N10,IF(P9=\"PMI\",P10,\"GRANDE\")))))))","v":"-"}]
[null,"NOTE (indicare eventuali note sui dati presi a riferimento, ad esempio se i dati della richiedente si riferiscono a bilanci consolidati):"]
[]
[]
[null,"Sezione 2: Dati imprese del gruppo"]
[]
[null,"Da compilare SOLO in caso di risposta \"IMPRESA COLLEGATA O ASSOCIATA\" alla precedente domanda 7.   -   Anno di riferimento modificabile in base all'ultimo bilancio disponibile"]
[]
[null,null,"Impresa n. 1",{"$nulls":7},"Impresa n. 6"]
[]
[null,"Denominazione"]
[null,"Anno di riferimento",{"$f":"$C$7","v":0},null,{"$f":"IFERROR(C22-1,\"-\")","v":-1},null,{"$f":"IFERROR(E22-1,\"-\")","v":-2},null,null,null,{"$f":"$C$7","v":0},null,{"$f":"IFERROR(K22-1,\"-\")","v":-1},null,{"$f":"IFERROR(M22-1,\"-\")","v":-2}]
[null,"Percentuale di partecipazione (%)"]
[null,"Fatturato ultimo bilancio approvato (€)"]
[null,"Numero di occupati (1)"]
[null,"Totale attivo ultimo bilancio approvato (€)"]
[]
[null,null,"Impresa n. 2",{"$nulls":7},"Impresa n. 7"]
[]
[null,"Denominazione"]
[null,"Anno di riferimento",{"$f":"$C$7","v":0},null,{"$f":"IFERROR(C31-1,\"-\")","v":-1},null,{"$f":"IFERROR(E31-1,\"-\")","v":-2},null,null,null,{"$f":"$C$7","v":0},null,{"$f":"IFERROR(K31-1,\"-\")","v":-1},null,{"$f":"IFERROR(M31-1,\"-\")","v":-2}]
[null,"Percentuale di partecipazione (%)"]
[null,"Fatturato ultimo bilancio approvato (€)"]
[null,"Numero di occupati (1)"]
[null,"Totale attivo ultimo bilancio approvato (€)"]
[]
[null,null,"Impresa n. 3",{"$nulls":7},"Impresa n. 8"]
[]
[null,"Denominazione"]
[null,"Anno di riferimento",{"$f":"$C$7","v":0},null,{"$f":"IFERROR(C40-1,\"-\")","v":-1},null,{"$f":"IFERROR(E40-1,\"-\")","v":-2},null,null,null,{"$f":"$C$7","v":0},null,{"$f":"IFERROR(K40-1,\"-\")","v":-1},null,{"$f":"IFERROR(M40-1,\"-\")","v":-2}]
[null,"Percentuale di partecipazione (%)"]
[null,"Fatturato ultimo bilancio approvato (€)"]
[null,"Numero di occupati (1)"]
[null,"Totale attivo ultimo bilancio approvato (€)"]
[]
[null,null,"Impresa n. 4",{"$nulls":7},"Impresa n. 9"]
[]
[null,"Denominazione"]
[null,"Anno di riferimento",{"$f":"$C$7","v":0},null,{"$f":"IFERROR(C49-1,\"-\")","v":-1},null,{"$f":"IFERROR(E49-1,\"-\")","v":-2},null,null,null,{"$f":"$C$7","v":0},null,{"$f":"IFERROR(K49-1,\"-\")","v":-1},null,{"$f":"IFERROR(M49-1,\"-\")","v":-2}]
[null,"Percentuale di partecipazione (%)"]
[null,"Fatturato ultimo bilancio approvato (€)"]
[null,"Numero di occupati (1)"]
[null,"Totale attivo ultimo bilancio approvato (€)"]
[]
[null,null,"Impresa n. 5",{"$nulls":7},"Impresa n. 10"]
[]
[null,"Denominazione"]
[null,"Anno di riferimento",{"$f":"$C$7","v":0},null,{"$f":"IFERROR(C58-1,\"-\")","v":-1},null,{"$f":"IFERROR(E58-1,\"-\")","v":-2},null,null,null,{"$f":"$C$7","v":0},null,{"$f":"IFERROR(K58-1,\"-\")","v":-1},null,{"$f":"IFERROR(M58-1,\"-\")","v":-2}]
[null,"Percentuale di partecipazione (%)"]
[null,"Fatturato ultimo bilancio approvato (€)"]
[null,"Numero di occupati (1)"]
[null,"Totale attivo ultimo bilancio approvato (€)"]
[]
[null,"(1) Considerare nel calcolo: a. i dipendenti; b. i proprietari-gestori; c. i soci che svolgono un’attività regolare nell’impresa e beneficiano di vantaggi finanziari da essa forniti.  Chiunque abbia lavorato nell’impresa, o per suo conto, durante l’intero anno di riferimento conta come una unità. I dipendenti che hanno lavorato a tempo parziale, i lavoratori stagionali e coloro che non hanno lavorato tutto l’anno devono essere contabilizzati in frazioni di unità"]
[]
[]
[null,"SELEZIONA"]
[null,"1) IMPRESA AUTONOMA: L'impresa detiene meno del 25% in un’altra impresa e/o è partecipata da un’altra impresa per una quota inferiore al 25%"]
[null,"2) IMPRESA ASSOCIATA o COLLEGATA: L'impresa detiene almeno il 25% in un’altra impresa e/o è partecipata da un’altra impresa per una quota almeno pari al 25% e/o è collegata ad altre imprese mediante persona fisica"]
[]
[]
[null,50000000]
[null,10000000]
[null,2000000]
[null,10]
[null,50]
[null,250]
[null,43000000]
[]
[]
[null,"COMPILARE ANCHE 2° ANNO"]
[null,"COMPILARE ANCHE 3° ANNO"]
[]
[]
[null,"ISTRUZIONI PER LA COMPILAZIONE :\nNella Sezione 1 “Dati sull’impresa richiedente” compilare tutti i campi evidenziati in grigio delle 7 righe riferite alle ultime tre annualità, comprensive dell’ultimo bilancio disponibile approvato. Nel caso in cui al punto 7. (\"7. Selezionare la situazione che rappresenta l'impresa richiedente\") l’impresa è selezionata come non autonoma (ossia associata o collegata), compilare nella Sezione 2 anche i dati relativi alle imprese facenti parte del gruppo (a tal fine vedasi il foglio \"Istruzioni\" per la definizione di impresa associata o collegata e gli esempi e situazioni ivi indicati). Una volta compilata la Sezione 1 ed eventualmente la Sezione 2 (solo in caso di impresa richiedente non autonoma), nella Sezione 3 si visualizzerà la dimensione dell’impresa richiedente. Se a seguito della compilazione delle ultime due annualità (della Sezione 1 ed eventualmente della Sezione 2) la dimensione dell'impresa richiedente coincide (ad es. \"Piccola\" per entrambe le annualità, oppure \"Grande\" per entrambe le annualità) non è necessario compilare i dati relativi per la terza annualità, dato che il risultato rimarrebbe invariato. Nel caso in cui la dimensione d'impresa nei tre anni di riferimento risulti diversa si rimanda alla tabella in calce al foglio \"Istruzioni\" che esemplifica come leggere gli esiti delle verifiche. "]